lending/lending_fUSD_20240522
["ID","MTS","AMOUNT","RATE_DAILY","PERIOD"]
[327724716,1716383446527,-152.98488687,0.00028963,2]
[327724717,1716383446536,-155.31485281,0.00028995,2]
[327724718,1716383446546,-1097.2786714,0.00029,30]
[327724719,1716383446555,-5000.0,0.00029,2]
[327724720,1716383446564,-720.92363512,0.00029,2]
[327724721,1716383446574,-12660.485417,0.00029,8]
[327724722,1716383446584,-149284.61180119,0.00029,2]
[327724723,1716383446593,-914.0,0.00029,6]
[327724724,1716383446603,-1500.0,0.00029,2]
[327724725,1716383446612,-150.0,0.00029,6]
[327724726,1716383446622,-150.0,0.00029015,2]
[327724727,1716383446631,-166.66666667,0.00029048,2]
[327724728,1716383446645,-150.0,0.00029049,2]
[327724729,1716383446654,-1500.0,0.00029069,2]
[327724730,1716383446663,-150.0,0.00029079,2]
[327724731,1716383446672,-150.0,0.00029083,2]
[327724732,1716383446681,-150.0,0.00029086,2]
[327724733,1716383446690,-326.11337643,0.00029087,2]
[327724734,1716383446699,-231.08471568,0.00029092,2]
[327724735,1716383446708,-151.8895225,0.00029101,2]
[327724736,1716383446717,-150.0,0.00029124,2]
[327724737,1716383446726,-154.49054118,0.00029125,2]
[327724738,1716383446736,-154.49054118,0.00029135,2]
[327724739,1716383446745,-423.8575708,0.00029148,2]
[327724740,1716383446754,-150.0,0.00029149,2]
[327724741,1716383446763,-200.88522018,0.00029163,2]
[327724742,1716383446772,-150.0,0.00029164,2]
[327724743,1716383446782,-1500.0,0.00029171,2]
[327724744,1716383446791,-150.0,0.0002919,2]
[327724745,1716383446801,-150.0,0.00029191,2]
[327724746,1716383446810,-151.0,0.00029198,2]
[327724747,1716383446819,-250.49088,0.00029198,2]
[327724748,1716383446829,-250000.0,0.000292,2]
[327724749,1716383446838,-151.0,0.000292,7]
[327724750,1716383446847,-151.0,0.000292,7]
[327724751,1716383446856,-151.0,0.000292,7]
[327724752,1716383446869,-151.0,0.000292,7]
[327724753,1716383446878,-245.870635,0.000292,7]
[327724754,1716383446888,-150.0,0.000292,2]
[327724756,1716383446900,-222.756769,0.000292,7]
[327724758,1716383446910,-151.0,0.000292,7]
[327724760,1716383446920,-151.0,0.000292,7]
[327724761,1716383446930,-287.042657,0.000292,7]
[327724762,1716383446939,-151.0,0.000292,7]
[327724763,1716383446951,-151.0,0.000292,7]
[327724764,1716383446962,-151.0,0.000292,7]
[327724765,1716383446971,-151.0,0.000292,7]
[327724766,1716383446980,-151.0,0.000292,7]
[327724767,1716383446990,-151.0,0.000292,7]
[327724768,1716383446999,-151.0,0.000292,7]
[327724769,1716383447009,-162.570757,0.000292,7]
[327724770,1716383447019,-151.0,0.000292,7]
[327724771,1716383447028,-223.275405,0.000292,7]
[327724772,1716383447038,-223.275405,0.000292,7]
[327724773,1716383447047,-155.659076,0.000292,7]
[327724774,1716383447056,-151.0,0.000292,7]
[327724775,1716383447066,-151.0,0.000292,7]
[327724776,1716383447075,-341.327818,0.000292,7]
[327724777,1716383447084,-341.327818,0.000292,7]
[327724778,1716383447094,-151.0,0.000292,7]
[327724779,1716383447103,-155.79135,0.000292,7]
[327724780,1716383447112,-151.0,0.000292,7]
[327724781,1716383447122,-151.0,0.000292,7]
[327724782,1716383447131,-155.79135,0.000292,7]
[327724783,1716383447144,-153.763669,0.000292,7]
[327724784,1716383447154,-151.0,0.000292,7]
[327724785,1716383447163,-256.687944,0.000292,7]
[327724786,1716383447172,-1374.641405,0.000292,7]
[327724787,1716383447182,-1374.641405,0.000292,7]
[327724788,1716383447191,-151.0,0.000292,7]
[327724789,1716383447201,-151.0,0.000292,7]
[327724791,1716383447210,-157.873605,0.000292,7]
[327724793,1716383447220,-159.198266,0.000292,7]
[327724795,1716383447230,-159.198266,0.000292,7]
[327724797,1716383447241,-151.0,0.000292,7]
[327724799,1716383447250,-151.0,0.000292,7]
[327724801,1716383447261,-179.630224,0.000292,7]
[327724803,1716383447271,-179.630224,0.000292,7]
[327724805,1716383447281,-151.0,0.000292,7]
[327724807,1716383447290,-150.0,0.00029203,2]
[327724809,1716383447300,-1500.0,0.00029211,2]
[327724811,1716383447309,-150.0,0.00029217,2]
[327724813,1716383447318,-157.54884506,0.00029233,2]
[327724815,1716383447328,-150.0,0.00029247,2]
[327724817,1716383447337,-150.0,0.00029276,2]
[327724819,1716383447346,-150.0,0.00029276,2]
[327724821,1716383447356,-300.0,0.00029292,2]
[327724823,1716383447365,-1500.0,0.00029292,2]
[327724825,1716383447375,-1418.27,0.000293,2]
[327724827,1716383447384,-1500.0,0.00029332,2]
[327724829,1716383447398,-231.08471568,0.00029344,2]
[327724831,1716383447407,-150.0,0.00029346,2]
[327724833,1716383447416,-150.0,0.0002935,2]
[327724835,1716383447425,-166.66666666,0.00029353,2]
[327724837,1716383447438,-155.31485281,0.00029357,2]
[327724838,1716383447448,-150.0,0.00029371,2]
[327724839,1716383447458,-150.0,0.00029373,2]
[327724849,1716383447559,-150.0,0.00029373,2]
[327724851,1716383447569,-150.0,0.00029376,2]
[327724852,1716383447579,-423.8575708,0.00029382,2]
[327724853,1716383447588,-150.0,0.00029389,2]
[327724854,1716383447597,-1530.13,0.000294,2]
[327724855,1716383447607,-155.31485281,0.00029405,2]
[327724856,1716383447617,-1500.0,0.00029416,2]
[327724857,1716383447626,-200.88522018,0.00029422,2]
[327724858,1716383447635,-1500.0,0.00029431,2]
[327724859,1716383447651,-150.0,0.00029452,2]
[327724860,1716383447660,-151.88952252,0.00029452,2]
[327724861,1716383447670,-150.0,0.00029454,2]
[327724862,1716383447679,-150.0,0.00029455,2]
[327724863,1716383447688,-152.98488687,0.00029467,2]
[327724864,1716383447698,-150.0,0.00029474,2]
[327724865,1716383447708,-150.0,0.00029476,2]
[327724866,1716383447717,-150.0,0.00029495,2]
[327724867,1716383447727,-231.08471568,0.00029496,2]
[327724868,1716383447736,-225.80367726,0.000295,3]
[327724869,1716383447746,-1500.0,0.000295,2]
[327724870,1716383447756,-150.0,0.000295,6]
[327724871,1716383447766,-231.08471568,0.00029504,2]
[327724872,1716383447776,-150.0,0.00029514,2]
[327724873,1716383447786,-150.0,0.00029515,2]
[327724874,1716383447795,-150.0,0.00029545,2]
[327724875,1716383447805,-191.63389977,0.00029546,2]
[327724876,1716383447815,-150.0,0.00029547,2]
[327724877,1716383447824,-1500.0,0.00029549,2]
[327724878,1716383447834,-150.0,0.00029549,2]
[327724879,1716383447844,-150.0,0.00029569,2]
[327724880,1716383447854,-1500.0,0.00029571,2]
[327724881,1716383447869,-152.98488687,0.00029572,2]
[327724882,1716383447879,-150.0,0.00029576,2]
[327724883,1716383447894,-150.0,0.00029581,2]
[327724884,1716383447904,-1500.0,0.00029593,2]
[327724885,1716383447915,-1348.03591491,0.00029603,2]
[327724886,1716383447924,-150.0,0.00029604,2]
[327724887,1716383447933,-150.0,0.00029609,2]
[327724888,1716383447943,-150.0,0.00029619,2]
[327724889,1716383447957,-188.29667437,0.00029625,2]
[327724890,1716383447967,-150.0,0.00029627,2]
[327724891,1716383447976,-1500.0,0.00029629,2]
[327724892,1716383447986,-198.72994484,0.00029642,2]
[327724893,1716383447995,-1196.64090148,0.00029642,2]
[327724894,1716383448005,-154.49054118,0.00029642,2]
[327724895,1716383448014,-1500.0,0.00029649,2]
[327724896,1716383448024,-154.49054118,0.00029664,2]
[327724897,1716383448034,-302.0,0.00029689,4]
[327724898,1716383448043,-150.0,0.00029689,2]
[327724899,1716383448052,-1500.0,0.00029696,2]
[327724900,1716383448062,-150.0,0.00029697,2]
[327724901,1716383448071,-150.0,0.00029697,2]
[327724902,1716383448080,-178.43248333,0.00029699,2]
[327724903,1716383448090,-150.0,0.00029699,2]
[327724904,1716383448099,-150.0,0.00029709,2]
[327724905,1716383448109,-1500.0,0.00029738,2]
[327724906,1716383448119,-150.0,0.00029748,2]
[327724907,1716383448128,-150.0,0.00029749,2]
[327724908,1716383448138,-200.0,0.00029759,2]
[327724909,1716383448151,-361.53668391,0.00029761,2]
[327724910,1716383448161,-150.0,0.00029771,2]
[327724911,1716383448170,-1655.602704,0.0002978,10]
[327724912,1716383448179,-150.0,0.00029781,2]
[327724913,1716383448189,-150.0,0.00029782,2]
[327724914,1716383448209,-150.0,0.00029783,2]
[327724915,1716383448225,-150.0,0.00029793,2]
[327724916,1716383448245,-1000.0,0.000298,10]
[327724917,1716383448266,-150.0,0.00029809,2]
[327724918,1716383448290,-1000.0,0.0002982,10]
[327724919,1716383448305,-150.0,0.00029834,2]
[327724920,1716383448324,-150.0,0.00029835,2]
[327724921,1716383448339,-231.08471568,0.0002984,2]
[327724922,1716383448364,-1000.0,0.0002984,10]
[327724923,1716383448384,-150.0,0.00029846,2]
[327724924,1716383448406,-154.81828761,0.00029846,2]
[327724925,1716383448419,-150.0,0.00029855,2]
[327724926,1716383448438,-1000.0,0.0002986,10]
[327724927,1716383448454,-150.0,0.00029863,2]
[327724928,1716383448469,-155.31485281,0.00029872,2]
[327724929,1716383448484,-150.0,0.00029876,2]
[327724930,1716383448499,-25000.0,0.0002988,7]
[327724931,1716383448514,-1000.0,0.0002988,10]
[327724932,1716383448529,-150.0,0.00029897,2]
[327724933,1716383448546,-4248.939567,0.000299,2]
[327724934,1716383448561,-153.95014873,0.000299,2]
[327724935,1716383448576,-3438.39794658,0.000299,2]
[327724936,1716383448591,-151.0,0.000299,7]
[327724937,1716383448606,-151.0,0.000299,7]
[327724938,1716383448621,-1000.0,0.000299,10]
[327724939,1716383448635,-1000.0,0.0002992,10]
[327724940,1716383448657,-150.0,0.00029923,2]
[327724941,1716383448674,-1000.0,0.0002994,10]
[327724942,1716383448690,-150.0,0.00029941,2]
[327724943,1716383448705,-150.0,0.00029945,2]
[327724944,1716383448721,-150.0,0.00029946,2]
[327724945,1716383448736,-1500.0,0.00029948,2]
[327724946,1716383448752,-426.65903386,0.0002996,10]
[327724947,1716383449088,-205.3,0.00027397,10]
[327724948,1716383449104,-573.34096614,0.0002996,10]
[327724949,1716383449119,-26.3368522,0.00029965,2]
[327724950,1716383449138,-123.6631478,0.00029965,2]
[327724951,1716383449158,-150.0,0.00029967,2]
[327724952,1716383449174,-49.18703227,0.00029973,2]
[327724953,1716383449186,-100.81296773,0.00029973,2]
[327724954,1716383449196,-1000.0,0.0002998,10]
[327724955,1716383449348,-1123.8122952,0.00029987,2]
[327724956,1716383449365,-867.7740746,0.00029987,2]
[327724957,1716383449374,-4864.7765222,0.00029987,2]
[327724958,1716383449384,-7182.1351535,0.00029987,2]
[327724959,1716383449393,-2074.0138847,0.00029987,2]
[327724960,1716383449402,-150.0,0.00029993,2]
[327724961,1716383449412,-208.16268875,0.00029999,2]
[327724962,1716383449421,-1354.34524548,0.00029999,2]
[327724963,1716383449432,-4518.66776197,0.00029999,2]
[327724964,1716383449442,-1071.69316974,0.0003,2]
[327724965,1716383449451,-1391.80767982,0.0003,60]
[327724966,1716383449461,-2000.0,0.0003,14]
[327724967,1716383449471,-575.90456969,0.0003,7]
[327724968,1716383449480,-1000.0,0.0003,2]
[327724969,1716383449490,-353.77408459,0.0003,4]
[327724970,1716383449612,-1215.52273262,0.0003,4]
[327724971,1716383449622,-155.62230995,0.0003,3]
[327724972,1716383449632,-16063.78295744,0.0003,4]
[327724973,1716383449663,-359.4395848,0.0003,4]
[327724974,1716383449694,-444.24331587,0.0003,4]
[327724975,1716383449705,-401.91663883,0.0003,4]
[327724976,1716383449851,-437.67425616,0.00024077,2]
[327724977,1716383450441,-62.32574384,0.00024077,2]
[327724978,1716383450452,-500.0,0.00024077,2]
[327724979,1716383450461,-500.0,0.00024077,2]
[327724980,1716383450471,-5554.97741378,0.0003,4]
[327724981,1716383450486,-275.68049958,0.000249,2]
[327724982,1716383450496,-723.69463372,0.0003,4]
[327724983,1716383450507,-409.55472256,0.0003,4]
[327724984,1716383450519,-3761.86752182,0.0003,4]
[327724985,1716383450528,-6762.05872818,0.0003,4]
[327724986,1716383450568,-1140.09922253,0.0003,4]
[327724987,1716383450579,-16718.0,0.0003,4]
[327724988,1716383450592,-3393.92392349,0.0003,4]
[327724989,1716383450603,-5633.37155046,0.0003,4]
[327724990,1716383450615,-390.97170268,0.0003,4]
[327724991,1716383450624,-486.0,0.0003,14]
[327724992,1716383450633,-160.0,0.0003,2]
[327724993,1716383450643,-160.0,0.0003,2]
[327724994,1716383450654,-151.941423,0.0003,7]
[327724995,1716383450663,-153.390977,0.0003,7]
[327724996,1716383450672,-600.0,0.0003,2]
[327724997,1716383450681,-200.0,0.0003,2]
[327724998,1716383450690,-200.0,0.0003,2]
[327724999,1716383450699,-2431.46850765,0.0003,4]
[327725000,1716383450901,-325.31628963,0.00024077,2]
[327725001,1716383450913,-174.68371037,0.00024077,2]
[327725002,1716383450923,-17568.53149235,0.0003,4]
[327725003,1716383450933,-20000.0,0.0003,4]
[327725004,1716383450945,-20000.0,0.0003,4]
[327725005,1716383450956,-20000.0,0.0003,4]
[327725006,1716383450966,-20000.0,0.0003,4]
[327725007,1716383450975,-1525.14207303,0.0003,4]
[327725008,1716383450987,-18474.85792697,0.0003,4]
[327725009,1716383450996,-1000.0,0.0003,11]
[327725010,1716383451006,-1500.0,0.0003,2]
[327725011,1716383451015,-150.0,0.0003,6]
[327725012,1716383451025,-1729.243908,0.00030007,2]
[327725013,1716383451035,-191.50144,0.00030007,2]
[327725014,1716383451044,-361.53668391,0.00030092,7]
[327725015,1716383451055,-155.46791383,0.00030097,7]
[327725016,1716383451066,-361.53668391,0.00030104,7]
[327725017,1716383451181,-153.3330513,0.00030108,7]
[327725018,1716383451191,-150.0,0.00030117,2]
[327725019,1716383451200,-150.0,0.00030124,2]
[327725020,1716383451210,-166.66666666,0.00030134,7]
[327725021,1716383451219,-1500.0,0.00030136,6]
[327725022,1716383451229,-15.81512543,0.00030136,2]
[327725023,1716383451240,-134.18487457,0.00030136,2]
[327725024,1716383451250,-458.867188,0.00030137,7]
[327725025,1716383451259,-458.867188,0.00030137,7]
[327725026,1716383451268,-159.033814,0.00030137,7]
[327725027,1716383451277,-200.88522018,0.00030143,7]
[327725028,1716383451287,-154.49054118,0.00030145,7]
[327725029,1716383451296,-150.0,0.00030148,2]
[327725030,1716383451305,-150.0,0.00030154,2]
[327725031,1716383451314,-150.0,0.00030186,2]
[327725032,1716383451323,-604.0,0.00030188,7]
[327725033,1716383451333,-231.08471568,0.00030188,7]
[327725034,1716383451343,-150.0,0.00030196,2]
[327725035,1716383451352,-154.49054118,0.00030238,7]
[327725036,1716383451361,-423.8575708,0.00030241,7]
[327725037,1716383451370,-150.0,0.00030272,2]
[327725038,1716383451380,-150.0,0.00030279,2]
[327725039,1716383451389,-166.66666666,0.00030291,7]
[327725040,1716383451402,-1500.0,0.00030293,2]
[327725041,1716383451411,-231.08471568,0.00030311,7]
[327725042,1716383451420,-150.0,0.00030314,2]
[327725043,1716383451431,-303.8,0.00030324,2]
[327725044,1716383451443,-150.0,0.00030356,2]
[327725045,1716383451453,-166.66666667,0.0003036,7]
[327725046,1716383451462,-156.06,0.00030374,2]
[327725047,1716383451472,-200.88522018,0.00030375,7]
[327725048,1716383451482,-1500.0,0.00030379,2]
[327725049,1716383451492,-1122.14007117,0.0003038,2]
[327725050,1716383451505,-152.98488687,0.00030395,7]
[327725051,1716383451514,-1500.0,0.00030406,2]
[327725052,1716383451524,-165.72518546,0.00030407,2]
[327725053,1716383451533,-581.66904246,0.0003041,6]
[327725054,1716383451543,-630.35896011,0.0003041,6]
[327725055,1716383451552,-507.04041217,0.0003041,6]
[327725056,1716383451562,-505.13112891,0.0003041,6]
[327725057,1716383451572,-500.0,0.0003041,6]
[327725058,1716383451581,-506.61137345,0.0003041,6]
[327725059,1716383451591,-504.69215706,0.0003041,6]
[327725060,1716383451600,-500.0,0.0003041,6]
[327725061,1716383451609,-538.92194197,0.0003041,6]
[327725062,1716383451618,-500.0,0.0003041,6]
[327725063,1716383451627,-500.49134274,0.0003041,6]
[327725064,1716383451638,-509.35746893,0.0003041,6]
[327725065,1716383451650,-355.87812833,0.0003041,6]
[327725066,1716383451663,-152.2035307,0.0003041,6]
[327725067,1716383451672,-500.0,0.0003041,6]
[327725068,1716383451683,-56.9664693,0.0003041,6]
[327725069,1716383451695,-328.73245961,0.0003041,6]
[327725070,1716383451705,-500.0,0.0003041,6]
[327725071,1716383451714,-500.0,0.0003041,6]
[327725072,1716383451724,-510.4990168,0.0003041,6]
[327725073,1716383451733,-507.60242633,0.0003041,6]
[327725074,1716383451743,-500.0,0.0003041,6]
[327725075,1716383451753,-500.0,0.0003041,6]
[327725076,1716383451762,-502.64311223,0.0003041,6]
[327725077,1716383451772,-500.0,0.0003041,6]
[327725078,1716383451782,-500.0,0.0003041,6]
[327725079,1716383451791,-500.0,0.0003041,6]
[327725080,1716383451801,-500.0,0.0003041,6]
[327725081,1716383451811,-500.0,0.0003041,6]
[327725082,1716383451820,-500.0,0.0003041,6]
[327725083,1716383451830,-500.0,0.0003041,6]
[327725084,1716383451840,-47.20218885,0.0003041,6]
[327725085,1716383451852,-452.79781115,0.0003041,6]
[327725086,1716383451862,-500.0,0.0003041,6]
[327725087,1716383451876,-356.17675921,0.0003041,6]
[327725088,1716383451888,-143.82324079,0.0003041,6]
[327725089,1716383451900,-507.54277219,0.0003041,6]
[327725090,1716383451911,-502.59375478,0.0003041,6]
[327725091,1716383451921,-22.6810488,0.0003041,6]
[327725092,1716383452557,-500.0,0.00024077,2]
[327725093,1716383452566,-29.34839614,0.00024077,2]
[327725094,1716383452578,-470.65160386,0.00024077,2]
[327725095,1716383452587,-500.0,0.00024077,2]
[327725096,1716383452596,-500.0,0.00024077,2]
[327725097,1716383452606,-500.0,0.00024077,2]
[327725098,1716383452616,-500.0,0.00024077,2]
[327725099,1716383452626,-500.0,0.00024077,2]
[327725100,1716383452635,-84.23994041,0.00024077,2]
[327725101,1716383452649,-415.76005959,0.00024077,2]
[327725102,1716383452659,-267.82545389,0.00024899,2]
[327725103,1716383452668,-150.0,0.00026479,2]
[327725104,1716383452677,-62.42448652,0.00026531,2]
[327725105,1716383452710,-87.57551348,0.00026531,2]
[327725106,1716383452719,-150.0,0.00026624,2]
[327725107,1716383452728,-150.0,0.00026824,2]
[327725108,1716383452738,-150.0,0.00026841,2]
[327725109,1716383452747,-150.0,0.00026923,2]
[327725110,1716383452756,-150.0,0.00026958,2]
[327725111,1716383452766,-150.0,0.00027022,2]
[327725112,1716383452776,-150.0,0.00027031,2]
[327725113,1716383452785,-150.0,0.00027075,2]
[327725114,1716383452795,-124.09998133,0.00027522,2]
[327725115,1716383452807,-25.90001867,0.00027522,2]
[327725116,1716383452816,-150.0,0.00027593,2]
[327725117,1716383452825,-150.0,0.00027615,2]
[327725118,1716383452835,-150.0,0.00027733,2]
[327725119,1716383452844,-150.0,0.00027773,2]
[327725120,1716383452854,-150.0,0.00027821,2]
[327725121,1716383452866,-150.0,0.00028034,2]
[327725122,1716383452876,-150.0,0.0002807,2]
[327725123,1716383452886,-150.0,0.00028071,2]
[327725124,1716383452898,-150.0,0.00028094,2]
[327725125,1716383452909,-150.0,0.00028113,2]
[327725126,1716383452919,-150.0,0.00028151,2]
[327725127,1716383452928,-150.0,0.00028186,2]
[327725128,1716383452937,-150.0,0.00028212,2]
[327725129,1716383452949,-150.0,0.00028219,2]
[327725130,1716383452958,-150.0,0.00028242,2]
[327725131,1716383452967,-150.0,0.0002906,2]
[327725132,1716383452977,-150.0,0.00029072,2]
[327725133,1716383452987,-150.0,0.00029316,2]
[327725134,1716383452997,-150.0,0.00029334,2]
[327725135,1716383453007,-150.0,0.00029454,2]
[327725136,1716383453017,-188.91094405,0.00029674,2]
[327725137,1716383453026,-150.0,0.0002982,2]
[327725138,1716383453036,-150.0,0.00029848,2]
[327725139,1716383453046,-150.0,0.00029859,2]
[327725140,1716383453058,-150.0,0.0003021,2]
[327725141,1716383453177,-150.0,0.00030247,2]
[327725142,1716383453188,-150.0,0.0003028,2]
[327725143,1716383453198,-301.33903728,0.0003041,6]
[327725144,1716383453210,-175.97991392,0.0003041,6]
[327725145,1716383453220,-500.0,0.0003041,6]
[327725146,1716383453230,-13.88303307,0.0003041,6]
[327725147,1716383453275,-150.0,0.00026547,2]
[327725148,1716383453285,-150.0,0.00027173,2]
[327725149,1716383453294,-150.0,0.00028603,2]
[327725150,1716383453304,-241.03903521,0.0003041,6]
[327725151,1716383453315,-297.27427511,0.0003041,6]
[327725152,1716383453324,-419.18008126,0.0003041,6]
[327725153,1716383453335,-80.81991874,0.0003041,6]
[327725154,1716383453345,-500.0,0.0003041,6]
[327725155,1716383453354,-500.0,0.0003041,6]
[327725156,1716383453363,-203.35566746,0.0003041,6]
[327725157,1716383453375,-299.13938476,0.0003041,6]
[327725158,1716383453385,-221.1770614,0.0003041,6]
[327725159,1716383453394,-500.0,0.0003041,6]
[327725160,1716383453406,-376.45106111,0.0003041,6]
[327725161,1716383453417,-123.54893889,0.0003041,6]
[327725162,1716383453426,-500.0,0.0003041,6]
[327725163,1716383453436,-141.8342862,0.0003041,6]
[327725164,1716383453448,-358.1657138,0.0003041,6]
[327725165,1716383453457,-92.94643981,0.0003041,6]
[327725166,1716383453468,-432.80624701,0.0003041,6]
[327725167,1716383453477,-500.0,0.0003041,6]
[327725168,1716383453488,-500.0,0.0003041,6]
[327725169,1716383453498,-170.39976342,0.0003041,6]
[327725170,1716383453510,-340.27630442,0.0003041,6]
[327725171,1716383453521,-169.13074859,0.0003041,6]
[327725172,1716383453547,-431.96925012,0.00024077,2]
[327725173,1716383453560,-68.03074988,0.00024077,2]
[327725174,1716383453571,-275.68049958,0.00029899,2]
[327725175,1716383453581,-186.74052009,0.0003041,6]
[327725176,1716383453594,-144.12873132,0.0003041,6]
[327725177,1716383453604,-390.03148026,0.0003041,6]
[327725178,1716383453615,-109.96851974,0.0003041,6]
[327725179,1716383453624,-177.43672564,0.0003041,6]
[327725180,1716383453639,-322.56327436,0.0003041,6]
[327725181,1716383453650,-500.0,0.0003041,6]
[327725182,1716383453660,-155.0,0.0003041,6]
[327725183,1716383453669,-450.93678081,0.0003041,6]
[327725184,1716383453680,-49.06321919,0.0003041,6]
[327725185,1716383453690,-413.11398211,0.0003041,6]
[327725186,1716383462354,-106.59875873,0.0003041,6]
[327725187,1716383462363,-357.31188127,0.0003041,6]
[327725188,1716383656005,1002.32,0.00028,30]
[327725189,1716383841138,3018.76,0.00028,30]
[327725190,1716384245996,20000.0,0.00031,120]
[327725192,1716384525177,600.0,0.00031,120]
[327725216,1716384632457,-155.0,0.00013944,2]
[327725217,1716384632467,-514.0,0.00013944,2]
[327725218,1716384632477,-2919.23173604,0.00013945,2]
[327725219,1716384632487,-784.0719601,0.00013946,2]
[327725220,1716384632496,-326.03857362,0.00013946,2]
[327725221,1716384632505,-155.0,0.00013946,2]
[327725222,1716384632515,-2813.98016787,0.00013947,2]
[327725223,1716384632524,-452.09796917,0.00013947,2]
[327725224,1716384632534,-3680.3441705,0.00013963,2]
[327725225,1716384632544,-156.06,0.00013973,2]
[327725226,1716384632553,-2758.2994,0.000149,2]
[327725227,1716384632563,-2145.0,0.00015,2]
[327725228,1716384632572,-155.0,0.00017259,2]
[327725229,1716384632582,-709.19,0.0001726,2]
[327725230,1716384632592,-522.34478735,0.00019,2]
[327725231,1716384632605,-410.39631753,0.00019,2]
[327725232,1716384632614,-809.0,0.00019227,2]
[327725233,1716384632623,-445.0,0.00019227,2]
[327725234,1716384632633,-439.0,0.00019227,2]
[327725235,1716384632641,-499.99,0.00019227,2]
[327725236,1716384632651,-150.99,0.00019227,2]
[327725237,1716384632661,-1104.424,0.00019227,2]
[327725238,1716384632671,-2854.68,0.00019452,2]
[327725239,1716384632680,-201.27,0.00020011,2]
[327725240,1716384632690,-250.0,0.00021651,2]
[327725241,1716384632700,-836.35,0.00021778,2]
[327725242,1716384632710,-150.0,0.00021809,2]
[327725243,1716384632720,-200.0,0.00021837,2]
[327725244,1716384632730,-968.89,0.00021846,2]
[327725245,1716384632740,-250.0,0.00021858,2]
[327725246,1716384632749,-163.86,0.00021918,2]
[327725247,1716384632760,-440.63,0.00021949,3]
[327725248,1716384632770,-734.41,0.00022021,2]
[327725249,1716384632780,-151.97205109,0.00022027,2]
[327725250,1716384632789,-500.0,0.00022221,2]
[327725251,1716384632800,-289.59,0.00022236,2]
[327725252,1716384632810,-627.99,0.0002227,2]
[327725253,1716384632819,-201.27,0.00022275,2]
[327725254,1716384632829,-304.56,0.00022323,2]
[327725255,1716384632839,-169.43,0.0002234,2]
[327725256,1716384632852,-151.37770386,0.00022362,2]
[327725257,1716384632861,-151.37770386,0.00022437,2]
[327725258,1716384632871,-508.34,0.00022509,2]
[327725259,1716384632880,-170.0,0.00022589,2]
[327725260,1716384632890,-267.82545389,0.00022593,2]
[327725262,1716384632899,-155.15629456,0.00022593,2]
[327725264,1716384632909,-290.49111298,0.00022594,2]
[327725265,1716384632918,-23900.0,0.00022595,2]
[327725266,1716384632928,-299.44,0.00022632,2]
[327725267,1716384632938,-151.37770386,0.00022718,2]
[327725268,1716384632948,-154.05647712,0.00022742,2]
[327725269,1716384632958,-154.49054119,0.00022745,2]
[327725270,1716384632968,-151.37770386,0.00022844,2]
[327725271,1716384632977,-154.94429312,0.00022904,2]
[327725272,1716384632987,-151.92,0.00022967,2]
[327725273,1716384632997,-151.92,0.00022976,2]
[327725274,1716384633007,-166.21,0.0002298,2]
[327725275,1716384633016,-200.0,0.0002298,2]
[327725276,1716384633026,-151.92,0.00022985,2]
[327725277,1716384633035,-151.92,0.00022993,2]
[327725278,1716384633045,-5511.49091993,0.00023,2]